Cogmind - Beta 14 @@@ ROGUE MODE // 2024.10.18 @ 20:13:58 Player: buwwet Result: Self-destructed Performance ------------- Evolutions (2) 1000 Regions Visited (7) 1400 Robots Destroyed (45) 225 Value Destroyed (1478) 1478 Prototype IDs (0) 0 Alien Tech Used (0) 0 Bonus (700) 700 TOTAL SCORE: 4803 Bonus ------- Entered Garrisons 200 Used RIF Installer 500 Cogmind --------- Core Integrity 187/550 Matter 71/300 Energy 140/140 System Corruption 0% Temperature Cool (51) Movement Treading (160) Location -8/Garrison Parts ------- > --- POWER (1) -------- Light Deuterium Engine > --- PROPULSION (3) --- Light Treads Light Treads > --- UTILITY (5) ------ Improved Heat Sink Medium Storage Unit Advanced Visual Processing Unit Light Armor Plating > --- WEAPON (2) ------- Gauss Rifle > --- INVENTORY (10) --- Light Nuclear Core Improved Deuterium Engine Compact Wheel Large Storage Unit Signal Interpreter Improved Terrain Scan Processor Pulse Rifle Mining Claw Peak State ------------ > --- POWER ------------ Light Nuclear Core > --- PROPULSION ------- Light Treads Aluminum Leg Compact Wheel > --- UTILITY ---------- Improved Heat Sink Improved Heat Sink Medium Storage Unit Advanced Visual Processing Unit Targeting Computer > --- WEAPON ----------- Heavy Assault Rifle Gauss Rifle > --- INVENTORY -------- Light Deuterium Engine Improved Deuterium Engine Aluminum Leg Large Storage Unit Signal Interpreter Improved Terrain Scan Processor Light Armor Plating Pulse Rifle Rocket Launcher Mining Claw [Rating: 25] Favorites ----------- Power Ion Engine Engine Ion Engine Power Core Light Nuclear Core Propulsion Light Treads Treads Light Treads Leg Aluminum Leg Wheel Compact Wheel Utility Medium Storage Unit Device Heat Sink Storage Medium Storage Unit Processor Visual Processing Unit Protection Improved Utility Shielding Weapon Medium Laser Energy Gun Medium Laser Ballistic Gun High-powered Shotgun Ballistic Cannon Improved Light Cannon Launcher Rocket Launcher Slashing Weapon Mining Claw Build | -11 -10 -10 -10 -9 -8 -8 -8 ------- Run | Yrd Mat Min Exi Min Mat Sto Gar Slots Evolved 4 | . . . . . 4 . . Power . | . . . . . . . . Propulsion 1 | . . . . . 1 . . Utility 3 | . . . . . 3 . . Weapon . | . . . . . . . . Parts Attached 75 | 9 14 . . 6 33 2 11 Power 6 | 1 . . . 1 3 1 . Engine 3 | 1 . . . 1 . 1 . Core 3 | . . . . . 3 . . Reactor . | . . . . . . . . Propulsion 23 | 3 5 . . 1 10 . 4 Treads 13 | 2 3 . . . 5 . 3 Leg 9 | 1 2 . . 1 4 . 1 Wheel 1 | . . . . . 1 . . Hover . | . . . . . . . . Flight . | . . . . . . . . Utility 21 | 2 3 . . 2 12 . 2 Device 8 | 1 1 . . 2 4 . . Storage 4 | 1 2 . . . 1 . . Processor 3 | . . . . . 3 . . Hackware . | . . . . . . . . Protection 6 | . . . . . 4 . 2 Artifact . | . . . . . . . . Weapon 25 | 3 6 . . 2 8 1 5 Energy Gun 9 | 2 4 . . 1 1 . 1 Energy Cannon . | . . . . . . . . Ballistic Gun 7 | 1 . . . . 4 . 2 Ballistic Cannon 1 | . . . . . 1 . . Launcher 3 | . . . . . . 1 2 Special Weapon . | . . . . . . . . Impact Weapon . | . . . . . . . . Slashing Weapon 5 | . 2 . . 1 2 . . Piercing Weapon . | . . . . . . . . Special Melee Weapon . | . . . . . . . . Unidentified Prototypes . | . . . . . . . . Parts Lost 25 | . 1 . . 3 13 1 7 Power 5 | . . . . 1 3 1 . Propulsion 8 | . . . . 1 5 . 2 Utility 7 | . 1 . . 1 2 . 3 Weapon 5 | . . . . . 3 . 2 Highest Loss Streak 5 | . 1 . . 3 5 1 5 To Critical Strikes . | . . . . . . . . Average Slot Usage (%) 98 | . 99 100 100 98 95 100 97 Engine 11 | . 14 14 14 13 3 9 9 Treads 20 | . 20 28 28 24 11 9 20 Leg 6 | . 7 . . 2 13 9 2 Device 12 | . 11 14 14 13 11 18 17 Storage 12 | . 16 14 14 14 9 9 9 Processor 3 | . . . . . 9 18 9 Protection 3 | . . . . . 12 . 7 Energy Gun 19 | . 26 28 28 27 5 . 7 Ballistic Gun 3 | . . . . . 7 15 8 Peak Build Rating 25 | 7 9 9 9 11 25 25 25 Average Rating 12 | 5 8 9 9 10 19 23 23 On Entrance 11 | . 7 9 9 9 9 25 22 Naked Turns . | . . . . . . . . Heaviest Build 40 | 15 21 21 21 21 40 24 27 Greatest Support 60 | 40 40 40 40 40 40 16 60 Greatest Overweight (x) 5 | . 5 . . . 3 1 1 Average Overweight (x) . | . . . . . . 1 . Largest Inventory Capacity 15 | 8 10 10 10 10 15 10 10 Average Capacity 9 | 7 8 10 10 10 10 10 10 Most Carried 10 | 6 10 10 10 10 10 10 10 Average Carried 8 | 3 8 10 10 9 8 9 9 Final Capacity 10 | 8 10 10 10 10 10 10 10 Final Carried 10 | 6 10 10 10 7 10 9 8 Class Distribution -------------------- 66% | Mutant 33% | Scavenger-Mutant Dominant Class ---------------- Mutant | -10/Materials Mutant | -10/Mines Mutant | -10/Exiles Mutant | -9/Mines Scavenger-Mutant | -8/Materials Scavenger-Mutant | -8/Storage Scavenger-Mutant | -8/Garrison Resources | -11 -10 -10 -10 -9 -8 -8 -8 ----------- Run | Yrd Mat Min Exi Min Mat Sto Gar Matter Collected 1226 | 230 236 . . 18 610 . 132 Remotely . | . . . . . . . . Salvage Created 1364 | 37 433 . . 18 572 . 304 Parts 102 | 7 27 . . 6 43 . 19 Haulers Intercepted 3 | . 2 . . . 1 . . Recyclers Shooed 1 | . 1 . . . . . . Parts Field Recycled . | . . . . . . . . Retrieved Matter . | . . . . . . . . Parts Self-Destructed . | . . . . . . . . Prevented . | . . . . . . . . Kills | -11 -10 -10 -10 -9 -8 -8 -8 ------- Run | Yrd Mat Min Exi Min Mat Sto Gar Combat Hostiles Destroyed 34 | . 9 . . 1 15 . 9 Guns 22 | . 8 . . 1 9 . 4 Cannons 6 | . . . . . 6 . . AOE 5 | . . . . . . . 5 Classes Destroyed 13 | 1 5 . . 1 5 . 1 Worker 1 | . 1 . . . . . . Builder 1 | . . . . . 1 . . Tunneler 3 | 2 . . . 1 . . . Hauler 3 | . 2 . . . 1 . . Operator 1 | . . . . . 1 . . Watcher 2 | . 2 . . . . . . Swarmer 5 | . 3 . . . . . 2 Grunt 19 | . 6 . . . 10 . 3 Brawler 1 | . . . . . 1 . . Duelist 1 | . . . . . . . 1 Sentry 5 | . . . . . 2 . 3 Demolisher 1 | . . . . 1 . . . Specialist 2 | . . . . . 2 . . Best Kill Streak 4 | 1 3 . . 1 3 . 4 Combat Bots Only 4 | . 3 . . 1 2 . 4 Max Kills in Single Turn 3 | 1 2 . . 1 2 . 3 Gunslinging 1 | . 1 . . . . . . Exploded 3 | . . . . . . . 3 Melee . | . . . . . . . . Uniques/NPCs Destroyed . | . . . . . . . . Combat | -11 -10 -10 -10 -9 -8 -8 -8 -------- Run | Yrd Mat Min Exi Min Mat Sto Gar Hostile Shots Fired 278 | . 42 . . 10 141 . 85 Missed 80 | . 12 . . . 45 . 23 Damage Taken 3240 | . 351 . . 390 1549 34 916 Core 511 | . 69 . . 79 263 . 100 Absorbed by Shields . | . . . . . . . . Redirected to Shielding 45 | . . . . . 45 . . Core Remaining (%) 70 | 100 . . . 40 . . . Volleys Fired 145 | 2 44 . . 5 73 . 21 Largest 2 | 2 2 . . 2 2 . 2 Hottest 115 | 70 115 . . 115 115 . 96 Shots Fired 271 | 4 88 . . 10 130 . 39 Gun 217 | 4 88 . . 10 84 . 31 Cannon 46 | . . . . . 46 . . Launcher 8 | . . . . . . . 8 Special . | . . . . . . . . Kinetic 138 | 2 6 . . . 107 . 23 Thermal 125 | 2 82 . . 10 23 . 8 Explosive 8 | . . . . . . . 8 Electromagnetic . | . . . . . . . . Robot Hit Streak 12 | 3 12 . . 4 12 . 10 Robot Miss Streak 6 | . 4 . . 1 6 . 4 Penetration Max . | . . . . . . . . Secondary Targets 2 | . 1 . . . . . 1 Max Gunslinging Chain 1 | . 1 . . . . . 1 Shots Hit Robots 179 | 3 56 . . 9 90 . 21 Core Hits 92 | 2 21 . . 3 46 . 20 Critical Kills 1 | . . . . . 1 . . Critical Parts Destroyed . | . . . . . . . . Critical Strikes 9 | . 5 . . . 3 . 1 Burn 7 | . 5 . . . 1 . 1 Destroy 1 | . . . . . 1 . . Blast 1 | . . . . . 1 . . Melee Attacks 9 | . 6 . . 2 1 . . Impact . | . . . . . . . . Slashing 9 | . 6 . . 2 1 . . Piercing . | . . . . . . . . Sneak Attacks 3 | . 1 . . 2 . . . Combat Hostiles . | . . . . . . . . Follow-up Attacks . | . . . . . . . . Damage Inflicted 3796 | 35 838 . . 211 1842 . 870 Guns 2496 | 35 792 . . 113 1205 . 351 Cannons 631 | . . . . . 631 . . Explosions 519 | . . . . . . . 519 Melee 144 | . 46 . . 98 . . . Ramming 6 | . . . . . 6 . . Kinetic 1953 | 10 38 . . . 1657 . 248 Thermal 1174 | 25 754 . . 113 179 . 103 Explosive 519 | . . . . . . . 519 Electromagnetic . | . . . . . . . . Impact . | . . . . . . . . Slashing 144 | . 46 . . 98 . . . Piercing . | . . . . . . . . Highest Corruption . | . . . . . . . . Average Corruption . | . . . . . . . . Corruption Purged . | . . . . . . . . Corruption Blocked . | . . . . . . . . Overload Shots . | . . . . . . . . Overflow Damage 43 | . . . . 28 . . 15 Projectiles . | . . . . . . . . Explosions 15 | . . . . . . . 15 Melee 28 | . . . . 28 . . . Knockbacks 10 | . . . . . 10 . . Impact . | . . . . . . . . Kinetic 9 | . . . . . 9 . . Secondary 1 | . . . . . 1 . . Self-Inflicted Damage 150 | . . . . . . . 150 Shots 6 | . . . . . . . 6 Rammed 1 | . . . . . 1 . . Targets Rammed 1 | . . . . . 1 . . Kicked . | . . . . . . . . Crushed . | . . . . . . . . Highest Temperature 415 | 9 415 . . 168 22 . 24 Average Temperature 78 | 6 91 . . 81 6 . 8 Received Heat Transfer 1281 | . 156 . . . 810 . 315 Effects 3 | . 3 . . . . . . Shutdowns 1 | . 1 . . . . . . Energy Bleed 1 | . 1 . . . . . . Short Circuit 1 | . 1 . . . . . . Siege Activations . | . . . . . . . . Robots Corrupted . | . . . . . . . . Combat Hostiles . | . . . . . . . . Parts Fried . | . . . . . . . . Impact Corruptions . | . . . . . . . . Robots Melted 1 | . 1 . . . . . . Combat Hostiles 1 | . 1 . . . . . . Parts Melted 5 | . 4 . . . . . 1 Heat Transferred 3663 | 74 2405 . . 296 592 . 296 Parts Sabotaged . | . . . . . . . . Parts Stolen . | . . . . . . . . Parts Stripped . | . . . . . . . . Power Chain Reactions . | . . . . . . . . Alert | -11 -10 -10 -10 -9 -8 -8 -8 ------- Run | Yrd Mat Min Exi Min Mat Sto Gar Peak Influence 287 | 10 189 7 . 30 278 53 287 Initial 53 | . 6 7 . . 11 53 30 Average 72 | 2 71 7 . 10 88 43 170 Maximum Alert Level 1 | . . . . . 1 . 1 Low Security (%) 90 | 100 100 100 . 100 90 100 39 Level 1 9 | . . . . . 9 . 60 Level 2 . | . . . . . . . . Level 3 . | . . . . . . . . Level 4 . | . . . . . . . . Level 5 . | . . . . . . . . High Security . | . . . . . . . . Max Security . | . . . . . . . . Squads Dispatched 3 | . 1 . . . 2 . . Investigation 1 | . 1 . . . . . . Extermination . | . . . . . . . . Reinforcement 2 | . . . . . 2 . . Assault . | . . . . . . . . Garrison . | . . . . . . . . Intercept . | . . . . . . . . Searches Triggered . | . . . . . . . . Construction Impeded . | . . . . . . . . Haulers Reinforced . | . . . . . . . . Active Scanning Responses . | . . . . . . . . Cargo Convoy Interrupts . | . . . . . . . . Stealth | -11 -10 -10 -10 -9 -8 -8 -8 --------- Run | Yrd Mat Min Exi Min Mat Sto Gar Distress Signals 1 | . 1 . . . . . . Communications Jammed . | . . . . . . . . Distress Signals . | . . . . . . . . Times Spotted 54 | . 15 . . 2 23 . 14 Peak Tracking Total 6 | . 3 . . 2 5 . 6 Tactical Retreats 4 | . 1 . . . 2 . 1 Traps | -11 -10 -10 -10 -9 -8 -8 -8 ------- Run | Yrd Mat Min Exi Min Mat Sto Gar Traps Triggered 4 | . 2 . . . . 1 1 Indirectly . | . . . . . . . . Trap Hack Attempts . | . . . . . . . . Triggered . | . . . . . . . . Disarmed . | . . . . . . . . Reprogrammed . | . . . . . . . . Reused . | . . . . . . . . Traps Extracted . | . . . . . . . . Installed . | . . . . . . . . Triggered . | . . . . . . . . Machines | -11 -10 -10 -10 -9 -8 -8 -8 ---------- Run | Yrd Mat Min Exi Min Mat Sto Gar Machines Disabled 1 | . . . . . 1 . . Max in Single Turn 1 | . . . . . 1 . . Machines Repaired . | . . . . . . . . Machines Dismantled . | . . . . . . . . Machines Sabotaged . | . . . . . . . . Overloaded Fab Kills . | . . . . . . . . Hacking | -11 -10 -10 -10 -9 -8 -8 -8 --------- Run | Yrd Mat Min Exi Min Mat Sto Gar Machines Accessed 18 | . 8 . 4 . 2 3 1 Terminals 13 | . 8 . . . 2 2 1 Fabricators . | . . . . . . . . Repair Stations . | . . . . . . . . Recycling Units . | . . . . . . . . Scanalyzers . | . . . . . . . . Garrison Access 1 | . . . . . . 1 . Total Hacks 36 | . 18 . 4 . 8 5 1 Successful 11 | . 4 . 4 . 2 1 . Failed 25 | . 14 . . . 6 4 1 Catastrophic 6 | . 4 . . . 1 1 . Database Lockouts . | . . . . . . . . Manual 19 | . 10 . . . 8 1 . Terminals 30 | . 18 . . . 8 3 1 Fabricators . | . . . . . . . . Repair Stations . | . . . . . . . . Recycling Units . | . . . . . . . . Scanalyzers . | . . . . . . . . Garrison Access 2 | . . . . . . 2 . Terminal Hacks 9 | . 4 . 4 . 1 . . Record 4 | . . . 4 . . . . Terminal Index 2 | . 1 . . . 1 . . Dispatch Records 1 | . 1 . . . . . . Recall Investigation 1 | . 1 . . . . . . Hauler Manifests 1 | . 1 . . . . . . Fabricator Hacks . | . . . . . . . . Repair Station Hacks . | . . . . . . . . Recycling Unit Hacks . | . . . . . . . . Scanalyzer . | . . . . . . . . Garrison Access Hacks 1 | . . . . . . 1 . Unlock Access 1 | . . . . . . 1 . Unauthorized Hacks 1 | . . . . . 1 . . Terminals 1 | . . . . . 1 . . Botnet 1 | . . . . . 1 . . Fabricators . | . . . . . . . . Repair Stations . | . . . . . . . . Recycling Units . | . . . . . . . . Scanalyzers . | . . . . . . . . Garrison Access . | . . . . . . . . Data Cores Recovered . | . . . . . . . . Used . | . . . . . . . . Hacking Detections 14 | . 8 . . . 2 3 1 Full Trace Events . | . . . . . . . . Feedback Events . | . . . . . . . . Feedback Blocked . | . . . . . . . . Robot Schematics Acquired . | . . . . . . . . Robots Built . | . . . . . . . . Authchips . | . . . . . . . . Time . | . . . . . . . . Total Robot Build Rating . | . . . . . . . . Part Schematics Acquired . | . . . . . . . . Parts Built . | . . . . . . . . Authchips . | . . . . . . . . Time . | . . . . . . . . Total Part Build Rating . | . . . . . . . . Parts Repaired . | . . . . . . . . Time . | . . . . . . . . Parts Recycled . | . . . . . . . . Recycled Matter . | . . . . . . . . Retrieved Matter . | . . . . . . . . Retrieved Components . | . . . . . . . . Parts Scanalyzed . | . . . . . . . . Part Schematics Acquired . | . . . . . . . . Parts Damaged . | . . . . . . . . Bothacking | -11 -10 -10 -10 -9 -8 -8 -8 ------------ Run | Yrd Mat Min Exi Min Mat Sto Gar Used RIF Installer 1 | . . . . . . . 1 Robots Hacked . | . . . . . . . . Non-combat . | . . . . . . . . Combat . | . . . . . . . . Robot Hacks Applied . | . . . . . . . . Relay Couplers Released . | . . . . . . . . Fabnet Peak Effective % . | . . . . . . . . Robots Rewired . | . . . . . . . . Allies Hacked . | . . . . . . . . Hacks Repelled . | . . . . . . . . Allies | -11 -10 -10 -10 -9 -8 -8 -8 -------- Run | Yrd Mat Min Exi Min Mat Sto Gar Total Allies 3 | . . . . 3 . . . Largest Group 3 | . . . . 3 . . . Highest-Rated Group 40 | . . . . 40 . . . Highest-Rated Ally 16 | . . . . 16 . . . Total Orders . | . . . . . . . . Ally Attacks 2 | . . . . 2 . . . Total Damage 13 | . . . . 13 . . . Kills . | . . . . . . . . Allies Corrupted . | . . . . . . . . Allies Melted . | . . . . . . . . Intel | -11 -10 -10 -10 -9 -8 -8 -8 ------- Run | Yrd Mat Min Exi Min Mat Sto Gar Robot Analysis Total . | . . . . . . . . Derelict Logs Recovered 2 | . . . . 2 . . . Drone Launches . | . . . . . . . . Drone Recoveries . | . . . . . . . . Exploration | -11 -10 -10 -10 -9 -8 -8 -8 ------------- Run | Yrd Mat Min Exi Min Mat Sto Gar Turns Passed 3708 | 141 1053 75 636 559 839 29 376 Spaces Moved 1916 | 72 506 45 398 321 346 24 204 Core 3 | 2 1 . . . . . . Treads 1666 | 70 505 45 398 321 192 . 135 Legs 113 | . . . . . 113 . . Wheels 134 | . . . . . 41 24 69 Hover . | . . . . . . . . Flight . | . . . . . . . . Fastest Speed 50 | 50 160 160 160 160 115 115 115 Average Speed 155 | 156 160 160 160 160 147 115 144 Slowest Speed 330 | 160 300 160 160 160 330 115 160 Overloaded Moves . | . . . . . . . . Propulsion Burnouts . | . . . . . . . . Robots Hopped . | . . . . . . . . Cave-ins Triggered . | . . . . . . . . Exploration Rate (%) 40 | 4 82 22 89 65 30 7 24 Regions Visited 7 Branch Regions 4 Pre-discovered Areas 1 | . . . . 1 . . . Known Exits Taken 2 | . . . . . 1 1 . Unknown Exits Taken 5 | 1 1 1 1 1 . . . Scrap Searched . | . . . . . . . . Spaces Dug 2 | . 1 . . . 1 . . Terrain Destroyed 61 | . 1 . . . 3 . 57 Melee 1 | . 1 . . . . . . Projectile 7 | . . . . . 3 . 4 AOE 53 | . . . . . . . 53 Terrain Rammed . | . . . . . . . . Walls Destroyed . | . . . . . . . . Machines Disabled . | . . . . . . . . Actions | -11 -10 -10 -10 -9 -8 -8 -8 --------- Run | Yrd Mat Min Exi Min Mat Sto Gar Total 2348 | 93 650 48 397 353 540 25 242 Wait 131 | 3 53 4 . 15 55 . 1 Move 1909 | 71 505 44 397 320 345 23 204 Hop . | . . . . . . . . Pick Up 44 | 7 15 . . 2 17 . 3 Fast Attach 23 | 6 5 . . 1 11 . . Attach 28 | 2 3 . . 3 15 1 4 Detach 4 | 1 . . . . 3 . . Swap 24 | 1 6 . . 2 7 1 7 Drop 29 | . 13 . . 3 12 . 1 Fire 145 | 2 44 . . 5 73 . 21 Melee 9 | . 6 . . 2 1 . . Ram . | . . . . . . . . Kick . | . . . . . . . . Crush 1 | . . . . . 1 . . Escape Stasis . | . . . . . . . . Rewire 1 | . . . . . . . 1 Trap . | . . . . . . . . Miscellaneous . | . . . . . . . . Route ------- -11/Scrapyard -10/Materials (discovered 4 exits: [*Mat x3] / [*Min]) -10/Mines -10/Exiles -9/Mines -8/Materials (discovered 2 exits: Fac / *Sto) -8/Storage -8/Garrison History --------- Turn | Location | Event 18 | -11/Scrapyard | Discovered new exit (range 16) 142 | -11/Scrapyard | Entered Materials 305 | -10/Materials | Build established: Mutant 468 | -10/Materials | Discovered new exit (range 5) 943 | -10/Materials | Discovered new exit (range 8) 1001 | -10/Materials | Discovered new exit (range 3) 1158 | -10/Materials | Discovered new exit (range 6) 1195 | -10/Materials | Entered Mines 1263 | -10/Mines | Deemed a non-threat by the Exiles lab entrance 1263 | -10/Mines | Discovered new exit (range 5) 1270 | -10/Mines | Entered Exiles 1270 | -10/Exiles | Found Exiles lab abandoned 1888 | -10/Exiles | Discovered new exit (range 14) 1906 | -10/Exiles | Entered Mines 1972 | -9/Mines | Assisted by bots powering up and referring to "LRC-V3" 2009 | -9/Mines | Received a Rocket Launcher from a helpful Derelict 2010 | -9/Mines | Learned 4 Materials zone layouts 2076 | -9/Mines | Learned location of Storage (-8) 2150 | -9/Mines | Assembled infested the area 2343 | -9/Mines | Core integrity fell below 50% 2365 | -9/Mines | Lost 3 parts (1p1n1u) 2365 | -9/Mines | Lost 3 allies 2446 | -9/Mines | Discovered new exit (range 8) 2465 | -9/Mines | Entered Materials 2465 | -8/Materials | Evolved 4 slots: Propulsion x1, Utility x3 2466 | -8/Materials | Identified exit to Factory 2466 | -8/Materials | Identified exit to Storage 2775 | -8/Materials | Build established: Scavenger-Mutant 2869 | -8/Materials | Lost 3 parts (1p1n1w) 3183 | -8/Materials | Lost 5 parts (1p2n1u1w) 3304 | -8/Materials | Entered Storage 3332 | -8/Storage | Identified exit to Garrison 3333 | -8/Storage | Entered Garrison 3361 | -8/Garrison | Triggered checkpoint 3366 | -8/Garrison | Core integrity fell below 50% 3417 | -8/Garrison | Installed Relay Interface Framework 3679 | -8/Garrison | Triggered checkpoint 3684 | -8/Garrison | Triggered checkpoint 3709 | -8/Garrison | Self-destructed Last Messages --------------- 03629_ A-02 Transporter is unpowered. 03677_ Slug penetrates G-47 Trooper. 03679_ Beams of light sweep through the air. An alarm sounds. 03680_ Imp. Heat Sink destroyed. 03681_ G-47 Trooper destroyed. 03684_ L-31 Rogue destroyed. 03684_ Destroyed Lgt. Ion Engine. 03684_ S-10 Pest destroyed. 03684_ Beams of light sweep through the air. An alarm sounds. 03685_ Rocket Launcher destroyed. 03686_ Lgt. Treads destroyed. 03688_ Lgt. Armor Plating destroyed. 03692_ Slug penetrates Wall. 03697_ Slug penetrates S-10 Pest. 03697_ Destroyed Lgt. Ion Engine. 03701_ Hvy. Assault Rifle destroyed. 03705_ Slug penetrates G-47 Trooper. 03709_ Critical hit (Burn: +37). Map ----- +----------------------------------------------------+ | ?????????????????????????????????????????????????? | | ?????????????????????????????????????????????????? | | ?????????????????????????????????????????????????? | | ????????????????????????? ?????????????????????? | | ????????????????????????? ?????????????????????? | | ????????????????????????# ?????????????????????? | | ????????????????????????# ?????????????????????? | | ??????????????????####??# #????????????????????? | | ??????????????????# ??# #????????????????????? | | ???????????????#### ?# #????????????????????? | | ???????????###?? ? #????????????????????? | | ???????????? ?? ? ????????????????????? | | ???????????? ?? ? ????????????????????? | | ?????????????# ?# ##g #????????????????????? | | ?????????????# ## ###??????????????????? | | ?????????????" [% ???????????????????? | | ?????????????" g ???????????????????? | | ??????????????? %* ????????????????????? | | ????????????????? g** ????????????????##### | | ?????????????# ???# # %ss##???????????????#"# # | | ?????????##### ## # =/ #???????????????#" # | | ??????? ^ #???????????????#" # | | ??????? ^^ #????????????????#" | | ?????????????# #?????????#####??#"# | | ?????????????## ##""""## ##?????????#T #??### | | ????????????????????????#@ #??????????" #??# # | | ????????????????????????# #??????????# #?## | | ????????????????????????# #??????????# ##### #[ | | ????????????????????????# #??????????# #### ##!= | | ????????????????????????# #??????????# [# | | ????????????????????????# #??????????# #### #![# | | ????????????????????????# ########???# #??# ## | | ????????????????????????# #???# #??# # | | ????????????????????????# ########## | | ????????????????????????#### ## % | | ???????????????????????????# ## ########### [ # | | ???????????????????????????# ## #????????## | | ???????????????????????????# ## #????????# ## # | | ???????????????????????????# ## #????????## #### | | ???????????????????????????# ## ###???????# ###! | | ???????????????????????????# ## #???????# | | ???????????????????????????# ## #???????#####! | | ???????????????????????????# ## #????????????# | | ???????????????????????????# #######????????????? | | ???????????????????????????# #??????????????????? | | ??????????????????????????## ####???????????????? | | ???????????????????????#### ####????????????? | | ???????????????????????# #????????????? | | ???????????????????????#""" """#????????????? | | ??????????????????????????" "???????????????? | +----------------------------------------------------+ Best States ------------- Heat Dissipation 45 Energy Generation 14 Energy Capacity 250 Matter Stores 317 Matter Capacity 400 Sight Range 20 Terrain Scan Range 16 Terrain Scan Density 10 Armor Coverage 150 Utility Shielding 66 Evasion (%) 55 Targeting Accuracy 5 Recoil Reduction 3 Item Schematics ----------------- None Robot Schematics ------------------ None Fabricated ------------ Nothing Alien Tech Used ----------------- None Achievements -------------- None Challenges ------------ None Game ------ Seed ShockNullWand Manual? 0 Play Time 00:34:47 Cumulative 31.2 hours Start 2024.10.18 @ 19:18:23 End 2024.10.18 @ 20:13:58 Sessions 3 Manual Loads 0 Difficulty Rogue Special Mode None Game No. 31 Rogue 31 Adventurer 0 Explorer 0 Win Type - Total 0 Types 0/0/0/0/0/0/0/0/0 Lore% 21 Gallery% 29 Achievement% 28 Wizard Run 0 Options --------- Layout 1 ASCII 0 Keyboard 0 Movement Arrows Keybinds 0 Fullscreen 2 Font 24/Terminus Map View 50x35 Zoom Use 0% Tactical HUD 1 Map Filters NONE Filters NONE Steam 1 RUN: bb19fcf7-2dda-46f9-be3d-8598aa041396